Cogmind - Beta 9.1 @@@ ROGUE MODE // 2019.11.03 @ 10:57:24 Player: MrPainting Result: Destroyed by Y-45 Defender with Heavy Assault Rifle Performance ------------- Evolutions (1) 500 Regions Visited (3) 600 Robots Destroyed (29) 145 Value Destroyed (614) 614 Prototype IDs (0) 0 Alien Tech Used (0) 0 Bonus (33) 33 TOTAL SCORE: 1892 Bonus ------- Follower Combat Kills 33 Cogmind --------- Core Integrity 0/400 Matter 263/300 Energy 100/100 System Corruption 0% Temperature Cool (9) Location -9/Materials Parts ------- Power (1) Propulsion (3) Utility (3) Improved Targeting Computer Weapon (2) Heavy Hammer Inventory (4) Improved Ion Engine Hacking Suite Light Assault Rifle Grenade Launcher Peak State ------------ Power Reinforced Ion Engine Propulsion Light Treads Light Treads Hover Unit Utility Signal Interpreter Improved Targeting Computer Light Armor Plating Weapon Light Cannon Light Cannon Inventory Improved Ion Engine Light Cannon Grenade Launcher Mining Claw [Rating: 11] Favorites ----------- Power Improved Ion Engine Engine Improved Ion Engine Propulsion Light Treads Treads Light Treads Leg Aluminum Leg Hover Unit Hover Unit Flight Unit Flight Unit Utility Signal Interpreter Storage Large Storage Unit Processor Signal Interpreter Protection Light Armor Plating Weapon Light Cannon Energy Gun Small Laser Ballistic Gun Assault Rifle Ballistic Cannon Light Cannon Launcher Grenade Launcher Impact Weapon Heavy Hammer Slashing Weapon Mining Claw Build | -11 -10 -10 -9 ------- Run | Scr Mat Min Mat Slots Evolved 2 | . . . 2 Power . | . . . . Propulsion 1 | . . . 1 Utility 1 | . . . 1 Weapon . | . . . . Parts Attached 41 | 6 2 13 20 Power 6 | 2 . 2 2 Engine 6 | 2 . 2 2 Core . | . . . . Reactor . | . . . . Propulsion 14 | 2 . 4 8 Treads 5 | . . 3 2 Leg 3 | 2 . 1 . Wheel . | . . . . Hover 2 | . . . 2 Flight 4 | . . . 4 Utility 6 | . 1 1 4 Device . | . . . . Storage 1 | . . . 1 Processor 3 | . 1 1 1 Hackware . | . . . . Protection 2 | . . . 2 Artifact . | . . . . Weapon 15 | 2 1 6 6 Energy Gun 1 | 1 . . . Energy Cannon . | . . . . Ballistic Gun 4 | 1 . 2 1 Ballistic Cannon 5 | . . 4 1 Launcher 1 | . . . 1 Special Weapon . | . . . . Impact Weapon 2 | . . . 2 Slashing Weapon 2 | . 1 . 1 Piercing Weapon . | . . . . Special Melee Weapon . | . . . . Unidentified Prototypes . | . . . . Parts Lost 13 | . . . 13 Power 1 | . . . 1 Propulsion 7 | . . . 7 Utility 2 | . . . 2 Weapon 3 | . . . 3 Highest Loss Streak 5 | . . . 5 Average Slot Usage (%) 92 | . 68 97 83 Engine 11 | . . 13 9 Treads 21 | . . 27 13 Leg 1 | . 28 1 . Hover 2 | . . . 7 Flight 1 | . . . 4 Processor 24 | . 11 27 21 Protection 2 | . . . 6 Ballistic Gun 3 | . 14 4 . Ballistic Cannon 18 | . . 22 11 Slashing Weapon 2 | . 7 1 4 Naked Turns . | . . . . Heaviest Build 32 | 2 3 13 32 Greatest Support 40 | 10 3 40 40 Greatest Overweight (x) 4 | . . . 4 Average Overweight (x) . | . . . . Largest Inventory Capacity 10 | 4 4 4 10 Average Capacity 4 | 4 4 4 5 Most Carried 6 | 4 4 4 6 Average Carried 3 | 2 4 3 3 Final Capacity 4 | 4 4 4 4 Final Carried 4 | 4 4 4 4 Class Distribution -------------------- 93% | Mutant 6% | Scavenger-Mutant Dominant Class ---------------- Mutant | -10/Materials Mutant | -10/Mines Mutant | -9/Materials Resources | -11 -10 -10 -9 ----------- Run | Scr Mat Min Mat Matter Collected 800 | 238 . 248 314 Remotely . | . . . . Salvage Created 713 | . . 163 550 Parts 56 | . . 12 44 Haulers Intercepted 1 | . . . 1 Recyclers Shooed 1 | . . 1 . Parts Field Recycled . | . . . . Retrieved Matter . | . . . . Parts Self-Destructed . | . . . . Prevented . | . . . . Kills | -11 -10 -10 -9 ------- Run | Scr Mat Min Mat Combat Hostiles Destroyed 23 | . . 6 17 Melee 8 | . . 1 7 Guns 2 | . . 2 . Cannons 13 | . . 3 10 Classes Destroyed 8 | . . 4 4 Worker 2 | . . 1 1 Hauler 1 | . . . 1 Recycler 1 | . . . 1 Operator 2 | . . . 2 Swarmer 12 | . . 3 9 Grunt 7 | . . 2 5 Brawler 1 | . . . 1 Sentry 3 | . . 1 2 Best Kill Streak 11 | . . 3 11 Combat Bots Only 8 | . . 3 8 Max Kills in Single Turn 2 | . . 1 2 Gunslinging . | . . . . Exploded . | . . . . Melee 1 | . . 1 1 Uniques/NPCs Destroyed . | . . . . Combat | -11 -10 -10 -9 -------- Run | Scr Mat Min Mat Damage Taken 1867 | . 6 305 1556 Core 444 | . . 28 416 Absorbed by Shields . | . . . . Core Remaining (%) 94 | 100 . 88 . Volleys Fired 44 | . 5 11 28 Largest 2 | . 1 2 2 Hottest 70 | . 20 70 70 Shots Fired 79 | . 5 20 54 Gun 10 | . 5 5 . Cannon 69 | . . 15 54 Launcher . | . . . . Special . | . . . . Kinetic 79 | . 5 20 54 Thermal . | . . . . Explosive . | . . . . Electromagnetic . | . . . . Robot Hit Streak 11 | . 3 4 11 Robot Miss Streak 4 | . 1 4 3 Penetration Max . | . . . . Secondary Targets . | . . . . Shots Hit Robots 89 | . 4 10 75 Core Hits 31 | . . 9 22 Critical Hits 3 | . 1 . 2 Critical Kills 2 | . . . 2 Critical Parts Destroyed 1 | . 1 . . Melee Attacks 61 | . . 2 59 Impact 22 | . . . 22 Slashing 39 | . . 2 37 Piercing . | . . . . Sneak Attacks 2 | . . . 2 Combat Hostiles . | . . . . Follow-up Attacks 5 | . . . 5 Damage Inflicted 1900 | . 32 246 1622 Guns 71 | . 32 39 . Cannons 734 | . . 125 609 Explosions 59 | . . 59 . Melee 1036 | . . 23 1013 Ramming . | . . . . Kinetic 805 | . 32 164 609 Thermal 59 | . . 59 . Explosive . | . . . . Electromagnetic . | . . . . Impact 366 | . . . 366 Slashing 670 | . . 23 647 Piercing . | . . . . Highest Corruption . | . . . . Average Corruption . | . . . . Corruption Purged . | . . . . Overload Shots . | . . . . Overflow Damage 16 | . . . 16 Projectiles 12 | . . . 12 Explosions . | . . . . Melee 4 | . . . 4 Knockbacks 6 | . . 1 5 Impact . | . . . . Kinetic 5 | . . 1 4 Secondary 1 | . . . 1 Self-Inflicted Damage 54 | . . 54 . Shots 1 | . . 1 . Rammed . | . . . . Targets Rammed . | . . . . Kicked . | . . . . Crushed . | . . . . Highest Temperature 144 | . . 96 144 Average Temperature 46 | . . 46 46 Received Heat Transfer 474 | . . 78 396 Siege Activations . | . . . . Robots Corrupted . | . . . . Combat Hostiles . | . . . . Parts Fried . | . . . . Impact Corruptions . | . . . . Robots Melted . | . . . . Combat Hostiles . | . . . . Parts Melted . | . . . . Heat Transferred 100 | . . 100 . Parts Sabotaged . | . . . . Parts Stolen . | . . . . Parts Stripped . | . . . . Power Chain Reactions . | . . . . Missiles Intercepted . | . . . . Alert | -11 -10 -10 -9 ------- Run | Scr Mat Min Mat Peak Influence 402 | . 45 123 402 Average Influence 100 | . 11 49 222 Maximum Alert Level 2 | . . . 2 Low Security (%) 81 | . . . . Level 1 17 | . . . . Level 2 1 | . . . . Level 3 . | . . . . Level 4 . | . . . . Level 5 . | . . . . High Security . | . . . . Max Security . | . . . . Squads Dispatched 4 | . 1 . 3 Investigation . | . . . . Extermination . | . . . . Reinforcement 4 | . 1 . 3 Assault . | . . . . Garrison . | . . . . Intercept . | . . . . Construction Impeded . | . . . . Haulers Reinforced . | . . . . Stealth | -11 -10 -10 -9 --------- Run | Scr Mat Min Mat Distress Signals 3 | . . . 3 Communications Jammed . | . . . . Distress Signals . | . . . . Times Spotted 43 | . 5 7 31 Peak Tracking Total 7 | . 5 3 7 Tactical Retreats 4 | . . . 4 Traps | -11 -10 -10 -9 ------- Run | Scr Mat Min Mat Traps Triggered . | . . . . Indirectly . | . . . . Trap Hack Attempts . | . . . . Triggered . | . . . . Disarmed . | . . . . Reprogrammed . | . . . . Reused . | . . . . Traps Extracted . | . . . . Installed . | . . . . Triggered . | . . . . Machines | -11 -10 -10 -9 ---------- Run | Scr Mat Min Mat Machines Disabled 3 | . . 2 1 Max in Single Turn 1 | . . 1 1 Machines Sabotaged . | . . . . Garrisons Compromised . | . . . . Overloaded Fab Kills . | . . . . Fab Network Shutdowns . | . . . . Hacking | -11 -10 -10 -9 --------- Run | Scr Mat Min Mat Machines Accessed . | . . . . Terminals . | . . . . Fabricators . | . . . . Repair Stations . | . . . . Recycling Units . | . . . . Scanalyzers . | . . . . Garrison Access . | . . . . Total Hacks . | . . . . Successful . | . . . . Failed . | . . . . Catastrophic . | . . . . Database Lockouts . | . . . . Manual . | . . . . Terminals . | . . . . Fabricators . | . . . . Repair Stations . | . . . . Recycling Units . | . . . . Scanalyzers . | . . . . Garrison Access . | . . . . Terminal Hacks . | . . . . Fabricator Hacks . | . . . . Repair Station Hacks . | . . . . Recycling Unit Hacks . | . . . . Scanalyzer . | . . . . Garrison Access Hacks . | . . . . Unauthorized Hacks . | . . . . Terminals . | . . . . Fabricators . | . . . . Repair Stations . | . . . . Recycling Units . | . . . . Scanalyzers . | . . . . Garrison Access . | . . . . Data Cores Recovered . | . . . . Used . | . . . . Hacking Detections . | . . . . Full Trace Events . | . . . . Feedback Events . | . . . . Feedback Blocked . | . . . . Robot Schematics Acquired . | . . . . Robots Built . | . . . . Matter . | . . . . Time . | . . . . Total Robot Build Rating . | . . . . Part Schematics Acquired . | . . . . Parts Built . | . . . . Matter . | . . . . Time . | . . . . Total Part Build Rating . | . . . . Parts Repaired . | . . . . Time . | . . . . Parts Recycled . | . . . . Recycled Matter . | . . . . Retrieved Matter . | . . . . Retrieved Components . | . . . . Parts Scanalyzed . | . . . . Part Schematics Acquired . | . . . . Parts Damaged . | . . . . Bothacking | -11 -10 -10 -9 ------------ Run | Scr Mat Min Mat Used RIF Installer . | . . . . Robots Hacked . | . . . . Non-combat . | . . . . Combat . | . . . . Robot Hacks Applied . | . . . . Relay Couplers Released . | . . . . Robots Rewired . | . . . . Allies Hacked . | . . . . Hacks Repelled . | . . . . Allies | -11 -10 -10 -9 -------- Run | Scr Mat Min Mat Total Allies 1 | . . 1 . Largest Group 1 | . . 1 . Highest-Rated Group 31 | . . 31 . Highest-Rated Ally 31 | . . 31 . Total Orders . | . . . . Ally Attacks 3 | . . 3 . Total Damage 43 | . . 43 . Kills 1 | . . 1 . Allies Corrupted . | . . . . Allies Melted . | . . . . Intel | -11 -10 -10 -9 ------- Run | Scr Mat Min Mat Robot Analysis Total . | . . . . Derelict Logs Recovered 3 | . . 3 . Drone Launches . | . . . . Drone Recoveries . | . . . . Exploration | -11 -10 -10 -9 ------------- Run | Scr Mat Min Mat Turns Passed 1779 | 42 59 1127 551 Spaces Moved 1027 | 53 90 682 202 Core 202 | 51 90 61 . Treads 733 | . . 615 118 Legs 8 | 2 . 6 . Wheels . | . . . . Hover 13 | . . . 13 Flight 71 | . . . 71 Fastest Speed 37 | 50 50 50 37 Average Speed 130 | 52 50 149 121 Slowest Speed 300 | 120 50 160 300 Overloaded Moves . | . . . . Propulsion Burnouts . | . . . . Robots Hopped . | . . . . Cave-ins Triggered . | . . . . Exploration Rate (%) 37 | 4 25 99 22 Regions Visited 3 Branch Regions 1 Pre-discovered Areas . | . . . . Known Exits Taken 2 | . 1 1 . Unknown Exits Taken 1 | 1 . . . Scrap Searched 3 | . . 3 . Spaces Dug . | . . . . Terrain Destroyed 11 | . . 11 . Melee . | . . . . Projectile . | . . . . AOE 11 | . . 11 . Actions | -11 -10 -10 -9 --------- Run | Scr Mat Min Mat Total 1274 | 66 99 767 342 Wait 55 | . . 34 21 Move 1024 | 52 89 681 202 Hop . | . . . . Pick Up 25 | 6 1 10 8 Fast Attach 15 | 2 2 5 6 Attach 12 | 4 . . 8 Detach 4 | 2 . . 2 Swap 14 | . . 8 6 Drop 25 | . 2 16 7 Fire 44 | . 5 11 28 Melee 56 | . . 2 54 Ram . | . . . . Kick . | . . . . Crush . | . . . . Escape Stasis . | . . . . Rewire . | . . . . Trap . | . . . . Miscellaneous . | . . . . Route ------- -11/Scrapyard -10/Materials -10/Mines (discovered 2 exits: *Mat x2) -9/Materials (discovered 2 exits: Mat / [*Min]) History --------- Turn | Location | Event 7 | -11/Scrapyard | Discovered new exit (range 16) 43 | -11/Scrapyard | Entered Materials 78 | -10/Materials | Discovered new exit (range 16) 95 | -10/Materials | Identified exit to Mines 102 | -10/Materials | Entered Mines 105 | -10/Mines | Received a Mining Laser from a helpful Derelict 306 | -10/Mines | Build established: Mutant 408 | -10/Mines | Discovered new exit (range 12) 525 | -10/Mines | Discovered new exit (range 12) 811 | -10/Mines | Learned 4 Materials zone layouts 1114 | -10/Mines | Identified exit to Materials 1138 | -10/Mines | Learned location of 1 exit from Materials 1229 | -10/Mines | Entered Materials 1229 | -9/Materials | Evolved 2 slots: Propulsion x1, Utility x1 1230 | -9/Materials | Identified exit to Materials 1557 | -9/Materials | Destroyed 8 combat bots 1566 | -9/Materials | Lost 5 parts (3n2w) 1605 | -9/Materials | Discovered new exit (range 9) 1723 | -9/Materials | Lost 3 parts (1p1n1u) 1763 | -9/Materials | Core integrity fell below 50% 1772 | -9/Materials | Core integrity fell below 20% 1780 | -9/Materials | Destroyed by Y-45 Defender with Heavy Assault Rifle Last Messages --------------- 01693_ ALERT: Hostiles spotted, dispatching reinforcements to Terminal M012. 01699_ Y-45 Defender destroyed. 01700_ Acquired 54 matter. 01705_ Acquired Lgt. Treads. 01710_ Dropped Flight Unit. 01710_ Acquired Lgt. Treads. 01718_ Acquired Hvy. Hammer. 01720_ Dropped Mining Claw. 01722_ Acquired Hvy. Hammer. 01722_ K-01 Serf collects debris. 01729_ Hover Unit destroyed. 01730_ K-01 Serf collects debris. 01731_ Hvy. Hammer follow-up attack on Y-45 Defender. 01756_ Lgt. Treads destroyed. 01757_ Signal Interpreter destroyed. 01760_ Hvy. Hammer follow-up attack on Y-45 Defender. 01763_ Lgt. Treads destroyed. 01763_ Hvy. Hammer follow-up attack on Y-45 Defender. 01774_ Hvy. Hammer destroyed. Map ----- +----------------------------------------------------+ | ???? #?????????????# ????????????????????? | | ???? #???########### ????????????????????? | | ???? #???# #####????????????????????? | | ???? #???# """## ????????????????????? | | ????########### """ R"## ##????????????????????? | | ???? # """ """## #?????????????????????? | | ???? + """ ## #?????????????????????? | | ???? # ## #?????????????????????? | | ????#+##### ### ## ##????????????????????? | | ???? # #?# ## ????????????????????? | | ???? # #?############ ????????????????????? | | ???? # #???????# ## ????????????????????? | | ???? # ######### ????????????????????? | | ???? # #####????????????????????? | | ???? ####+####### ##???#????????????????????? | | ???? ## # #????#????????????????????? | | ???? ## ## #????#????????????????????? | | ???? ####### ## #????#????????????????????? | | ????##?????# ## #????#????????????????????? | | ???????????########### #????#????????????????????? | | ??????????????# # ######+##?????????????????? | | ??????????????# # ##/!! #?????????????????? | | ????????????????????????# !! #?????????????????? | | ????????????????????????#/! #?????????????????? | | ????????????????????????# #?????????????????? | | ????????????????????????#@ #?????????????????? | | ????????????????????????#Y!! !#?????????????????? | | ?????????????????????#??##g#####????????#????????? | | ?????????????????????# ##[ ########### #????????? | | ?????????????????????# [ #????????? | | ?????????????????????#### ######## ####????????? | | ????????????????????????## ######### #???????????? | | ?????????????????????????# ## +=#???????????? | | ????????????????????????## ## # #???????????? | | ????????????????????????# # # #######+#???? | | ????????????????????????# # # # #???? | | ????????????????????????# + # # #???? | | ????????????????????????# # # # #???? | | ????????????????????# ### ######## # """ #???? | | ???????????????????# # """ #???? | | ???????????????????# [ *+ """ #???? | | ???????????????????# # #???? | | ???????????????????# ######### # """ #???? | | ???????????????????# # # # """ #???? | | ?????????????????? !# """ #???? | | ????????????????? < !!# /]??? | | ????????????????? !!%#########???? | | ????????????????? ##"T"## ## !!#???????# | | ????????????????????????# "!"!" ## ############+ | | ????????????????????????#""!"!""## = [ | +----------------------------------------------------+ Best States ------------- Heat Dissipation 28 Energy Generation 12 Energy Capacity 265 Matter Stores 300 Matter Capacity 300 Sight Range 16 Terrain Scan Density 10 Armor Coverage 150 Evasion (%) 62 Targeting Accuracy 6 Recoil Reduction 2 Item Schematics ----------------- None Robot Schematics ------------------ None Fabricated ------------ Nothing Alien Tech Used ----------------- None Achievements -------------- None Challenges ------------ None Game ------ Seed MiningKineticMallet Manual? 0 Play Time 00:16:48 Cumulative 101.0 hours Start 2019.11.03 @ 10:43:34 End 2019.11.03 @ 10:57:24 Sessions 1 Manual Loads 0 Difficulty Rogue Special Mode None Game No. 162 Rogue 162 Adventurer 0 Explorer 0 Win Type - Total 0 Types 0/0/0/0/0/0/0 Lore% 31 Gallery% 48 Achievement% 34 Wizard Run 0 Options --------- ASCII 0 Keyboard 0 Movement Mouse Keybinds 0 Fullscreen 1 Font 18/SmallcapsGlow Map View 76x50 Tactical HUD 1 Map Filters NONE Filters NONE Steam 1 RUN: 84e43acf-e8fb-4df0-ba8c-d5894b8bcb0d